[Event "Titled Tuesday Blitz October 25 Late 2022"]
[White "Szpar, Milosz"]
[Black "Celestino, Rafael Teixeira"]
[WhiteFideId "1184989"]
[BlackFideId "2108925"]
[WhiteElo "2422"]
[BlackElo "2375"]
[Result "0-1"]
[Round "01"]
[TimeControl "180+1"]
[Date "2022.10.26"]
[WhiteClock "0:00:07"]
[BlackClock "0:01:42"]

1. e4 {[%clk 0:02:56]}  e5 {[%clk 0:02:59]} 2. Nf3 {[%clk 0:02:55]}  Nc6 {[%clk 0:02:58]} 3. Bb5 {[%clk 0:02:54]}  Nf6 {[%clk 0:02:55]} 4. d3 {[%clk 0:02:44]}  Bb4+ {[%clk 0:02:54]} 5. c3 {[%clk 0:02:36]}  Ba5 {[%clk 0:02:52]} 6. O-O {[%clk 0:02:29]}  d6 {[%clk 0:02:47]} 7. Re1 {[%clk 0:02:07]}  Bg4 {[%clk 0:02:43]} 8. Nbd2 {[%clk 0:01:57]}  O-O {[%clk 0:02:42]} 9. h3 {[%clk 0:01:57]}  Bd7 {[%clk 0:02:40]} 10. Nf1 {[%clk 0:01:53]}  Ne7 {[%clk 0:02:37]} 11. Bc4 {[%clk 0:01:49]}  Be6 {[%clk 0:02:33]} 12. Ng3 {[%clk 0:01:41]}  Qd7 {[%clk 0:02:17]} 13. Bg5 {[%clk 0:01:39]}  Bxc4 {[%clk 0:02:12]} 14. Bxf6 {[%clk 0:01:33]}  Be6 {[%clk 0:02:08]} 15. d4 {[%clk 0:01:23]}  gxf6 {[%clk 0:02:01]} 16. d5 {[%clk 0:01:18]}  Bxh3 {[%clk 0:02:00]} 17. gxh3 {[%clk 0:01:18]}  Qxh3 {[%clk 0:02:01]} 18. Qd3 {[%clk 0:01:14]}  Bb6 {[%clk 0:01:53]} 19. Nd2 {[%clk 0:00:58]}  Ng6 {[%clk 0:01:46]} 20. Qf3 {[%clk 0:00:09]}  Nh4 {[%clk 0:01:44]} 21. Qxf6 {[%clk 0:00:07]}  Qg2# {[%clk 0:01:42]} 0-1


[Site "https://www.chess.com"]

[Event "Titled Tuesday Blitz October 25 Late 2022"]
[White "Thiel, Thomas"]
[Black "Besedes, Danilo"]
[WhiteFideId "4615964"]
[BlackFideId "946796"]
[WhiteElo "2229"]
[BlackElo "2352"]
[Result "0-1"]
[Round "01"]
[TimeControl "180+1"]
[Date "2022.10.26"]
[WhiteClock "0:00:44"]
[BlackClock "0:00:41"]

1. e4 {[%clk 0:03:00]}  c6 {[%clk 0:02:58]} 2. d4 {[%clk 0:02:59]}  d6 {[%clk 0:02:57]} 3. Nc3 {[%clk 0:02:54]}  Qc7 {[%clk 0:02:57]} 4. f4 {[%clk 0:02:52]}  e5 {[%clk 0:02:55]} 5. Nf3 {[%clk 0:02:51]}  Bg4 {[%clk 0:02:52]} 6. Bc4 {[%clk 0:02:48]}  Nf6 {[%clk 0:02:38]} 7. Be3 {[%clk 0:02:31]}  Nbd7 {[%clk 0:02:36]} 8. Qd2 {[%clk 0:02:29]}  b5 {[%clk 0:02:30]} 9. Bb3 {[%clk 0:02:27]}  b4 {[%clk 0:02:30]} 10. Ne2 {[%clk 0:02:18]}  exf4 {[%clk 0:02:06]} 11. Bxf4 {[%clk 0:02:17]}  Nxe4 {[%clk 0:02:06]} 12. Qxb4 {[%clk 0:02:09]}  Qb6 {[%clk 0:01:58]} 13. Qxb6 {[%clk 0:02:07]}  axb6 {[%clk 0:01:59]} 14. O-O {[%clk 0:02:04]}  d5 {[%clk 0:01:56]} 15. Rae1 {[%clk 0:02:03]}  Be7 {[%clk 0:01:56]} 16. Ne5 {[%clk 0:02:02]}  Nxe5 {[%clk 0:01:54]} 17. Bxe5 {[%clk 0:02:02]}  O-O {[%clk 0:01:51]} 18. Ng3 {[%clk 0:01:59]}  Nxg3 {[%clk 0:01:48]} 19. Bxg3 {[%clk 0:01:58]}  Bf6 {[%clk 0:01:46]} 20. c3 {[%clk 0:01:57]}  Rfe8 {[%clk 0:01:45]} 21. h3 {[%clk 0:01:54]}  Bd7 {[%clk 0:01:43]} 22. Be5 {[%clk 0:01:48]}  Bxe5 {[%clk 0:01:39]} 23. dxe5 {[%clk 0:01:49]}  Be6 {[%clk 0:01:39]} 24. a3 {[%clk 0:01:37]}  Re7 {[%clk 0:01:34]} 25. Bc2 {[%clk 0:01:37]}  Rae8 {[%clk 0:01:34]} 26. Bf5 {[%clk 0:01:33]}  Bxf5 {[%clk 0:01:24]} 27. Rxf5 {[%clk 0:01:34]}  f6 {[%clk 0:01:24]} 28. e6 {[%clk 0:01:28]}  Rxe6 {[%clk 0:01:23]} 29. Rxe6 {[%clk 0:01:27]}  Rxe6 {[%clk 0:01:24]} 30. Kf2 {[%clk 0:01:22]}  Re5 {[%clk 0:01:21]} 31. Rf4 {[%clk 0:01:21]}  Kf7 {[%clk 0:01:21]} 32. Ra4 {[%clk 0:01:20]}  Re7 {[%clk 0:01:05]} 33. Ra6 {[%clk 0:01:16]}  Rb7 {[%clk 0:01:05]} 34. a4 {[%clk 0:01:16]}  Ke7 {[%clk 0:01:01]} 35. Ke3 {[%clk 0:01:16]}  Kd6 {[%clk 0:01:01]} 36. Kd4 {[%clk 0:01:16]}  h5 {[%clk 0:00:53]} 37. b4 {[%clk 0:01:14]}  g5 {[%clk 0:00:51]} 38. a5 {[%clk 0:01:13]}  bxa5 {[%clk 0:00:51]} 39. Rxa5 {[%clk 0:01:13]}  Re7 {[%clk 0:00:49]} 40. Ra6 {[%clk 0:01:12]}  Re4+ {[%clk 0:00:49]} 41. Kd3 {[%clk 0:01:12]}  Rc4 {[%clk 0:00:46]} 42. b5 {[%clk 0:01:12]}  Rc5 {[%clk 0:00:46]} 43. bxc6 {[%clk 0:01:10]}  Rxc6 {[%clk 0:00:46]} 44. Ra4 {[%clk 0:01:09]}  Ke5 {[%clk 0:00:47]} 45. Ra8 {[%clk 0:01:08]}  h4 {[%clk 0:00:46]} 46. Re8+ {[%clk 0:01:01]}  Kf4 {[%clk 0:00:45]} 47. Re2 {[%clk 0:01:00]}  Kg3 {[%clk 0:00:44]} 48. Kd4 {[%clk 0:00:59]}  Rc4+ {[%clk 0:00:44]} 49. Kd3 {[%clk 0:00:57]}  Rf4 {[%clk 0:00:42]} 50. Rc2 {[%clk 0:00:54]}  f5 {[%clk 0:00:42]} 51. Ke3 {[%clk 0:00:50]}  g4 {[%clk 0:00:41]} 52. hxg4 {[%clk 0:00:49]}  fxg4 {[%clk 0:00:41]} 53. Rd2 {[%clk 0:00:48]}  Re4+ {[%clk 0:00:41]} 54. Kd3 {[%clk 0:00:44]}  h3 {[%clk 0:00:41]} 55. gxh3 {[%clk 0:00:44]}  gxh3 {[%clk 0:00:41]} 0-1


[Site "https://www.chess.com"]

[Event "Titled Tuesday Blitz October 25 Late 2022"]
[White "Timmermans, Mark"]
[Black "Melikhov, Evgeny V."]
[WhiteFideId "1026399"]
[BlackFideId "4122046"]
[WhiteElo "2460"]
[BlackElo "2169"]
[Result "1/2-1/2"]
[Round "01"]
[TimeControl "180+1"]
[Date "2022.10.26"]
[WhiteClock "0:00:33"]
[BlackClock "0:00:28"]

1. b4 {[%clk 0:03:00]}  d5 {[%clk 0:02:55]} 2. Bb2 {[%clk 0:03:00]}  Bg4 {[%clk 0:02:55]} 3. Nf3 {[%clk 0:03:00]}  Bxf3 {[%clk 0:02:55]} 4. exf3 {[%clk 0:03:01]}  e6 {[%clk 0:02:54]} 5. c4 {[%clk 0:03:02]}  c6 {[%clk 0:02:54]} 6. a4 {[%clk 0:03:01]}  Nd7 {[%clk 0:02:52]} 7. Be2 {[%clk 0:03:01]}  Ndf6 {[%clk 0:02:51]} 8. b5 {[%clk 0:03:00]}  Bd6 {[%clk 0:02:49]} 9. O-O {[%clk 0:03:00]}  Ne7 {[%clk 0:02:48]} 10. d4 {[%clk 0:03:00]}  O-O {[%clk 0:02:39]} 11. c5 {[%clk 0:02:57]}  Bc7 {[%clk 0:02:39]} 12. Nd2 {[%clk 0:02:58]}  Nf5 {[%clk 0:02:35]} 13. g3 {[%clk 0:02:56]}  h5 {[%clk 0:02:22]} 14. Bd3 {[%clk 0:02:55]}  g6 {[%clk 0:02:15]} 15. f4 {[%clk 0:02:53]}  Kg7 {[%clk 0:01:55]} 16. Nf3 {[%clk 0:02:52]}  Rh8 {[%clk 0:01:48]} 17. h4 {[%clk 0:02:42]}  Ng4 {[%clk 0:01:39]} 18. Bxf5 {[%clk 0:02:38]}  exf5 {[%clk 0:01:36]} 19. Ne5 {[%clk 0:02:39]}  f6 {[%clk 0:01:32]} 20. Nxg4 {[%clk 0:02:19]}  hxg4 {[%clk 0:01:31]} 21. Re1 {[%clk 0:02:19]}  Qd7 {[%clk 0:01:30]} 22. Ra3 {[%clk 0:02:09]}  Rae8 {[%clk 0:01:28]} 23. Rae3 {[%clk 0:02:09]}  Re4 {[%clk 0:01:28]} 24. Rxe4 {[%clk 0:01:57]}  fxe4 {[%clk 0:01:27]} 25. Kg2 {[%clk 0:01:50]}  f5 {[%clk 0:01:23]} 26. Qb3 {[%clk 0:01:44]}  Qe7 {[%clk 0:01:16]} 27. bxc6 {[%clk 0:01:40]}  bxc6 {[%clk 0:01:16]} 28. Bc3 {[%clk 0:01:30]}  Rb8 {[%clk 0:00:58]} 29. Qc2 {[%clk 0:01:29]}  Qe8 {[%clk 0:00:46]} 30. Rb1 {[%clk 0:01:26]}  Rxb1 {[%clk 0:00:44]} 31. Qxb1 {[%clk 0:01:27]}  Qb8 {[%clk 0:00:45]} 32. Qf1 {[%clk 0:01:26]}  Qb3 {[%clk 0:00:42]} 33. Qa1 {[%clk 0:01:20]}  Qc2 {[%clk 0:00:34]} 34. Qb2 {[%clk 0:00:53]}  Qxb2 {[%clk 0:00:33]} 35. Bxb2 {[%clk 0:00:54]}  Ba5 {[%clk 0:00:33]} 36. Kf1 {[%clk 0:00:51]}  Kf7 {[%clk 0:00:32]} 37. Ke2 {[%clk 0:00:50]}  Ke6 {[%clk 0:00:32]} 38. Kd1 {[%clk 0:00:45]}  Kd7 {[%clk 0:00:31]} 39. Bc1 {[%clk 0:00:45]}  Kc7 {[%clk 0:00:29]} 40. Kc2 {[%clk 0:00:40]}  Kb7 {[%clk 0:00:28]} 41. Bd2 {[%clk 0:00:33]}  Bxd2 {[%clk 0:00:28]} 42. Kxd2 {[%clk 0:00:33]}  a5 {[%clk 0:00:28]} 1/2-1/2


[Site "https://www.chess.com"]

[Event "Titled Tuesday Blitz October 25 Late 2022"]
[White "Tokhirjonova, Gulrukhbegim"]
[Black "Roque Sola, Gisela"]
[WhiteFideId "14203626"]
[BlackFideId "5120241"]
[WhiteElo "2236"]
[BlackElo "1961"]
[Result "1/2-1/2"]
[Round "01"]
[TimeControl "180+1"]
[Date "2022.10.26"]
[WhiteClock "0:00:21"]
[BlackClock "0:00:07"]

1. e4 {[%clk 0:03:00]}  e6 {[%clk 0:02:59]} 2. d4 {[%clk 0:03:00]}  d5 {[%clk 0:02:56]} 3. e5 {[%clk 0:03:00]}  c5 {[%clk 0:02:55]} 4. c3 {[%clk 0:03:00]}  Nc6 {[%clk 0:02:55]} 5. Nf3 {[%clk 0:03:01]}  Nge7 {[%clk 0:02:55]} 6. Na3 {[%clk 0:02:58]}  cxd4 {[%clk 0:02:50]} 7. cxd4 {[%clk 0:02:59]}  Nf5 {[%clk 0:02:50]} 8. Nc2 {[%clk 0:02:59]}  Be7 {[%clk 0:02:48]} 9. Bd3 {[%clk 0:02:59]}  Bd7 {[%clk 0:02:47]} 10. O-O {[%clk 0:02:58]}  b5 {[%clk 0:02:28]} 11. a3 {[%clk 0:02:51]}  a5 {[%clk 0:02:27]} 12. Qe2 {[%clk 0:02:43]}  b4 {[%clk 0:02:22]} 13. Bf4 {[%clk 0:02:37]}  b3 {[%clk 0:02:14]} 14. Bxf5 {[%clk 0:01:59]}  exf5 {[%clk 0:02:15]} 15. Nce1 {[%clk 0:01:50]}  Qb6 {[%clk 0:02:06]} 16. Qd2 {[%clk 0:01:41]}  Be6 {[%clk 0:02:02]} 17. h4 {[%clk 0:01:40]}  a4 {[%clk 0:01:56]} 18. h5 {[%clk 0:01:38]}  Na5 {[%clk 0:01:54]} 19. Nd3 {[%clk 0:01:38]}  Nc4 {[%clk 0:01:54]} 20. Qe2 {[%clk 0:01:38]}  h6 {[%clk 0:01:47]} 21. Rac1 {[%clk 0:01:38]}  O-O {[%clk 0:01:26]} 22. Rfd1 {[%clk 0:01:37]}  Rac8 {[%clk 0:01:24]} 23. Be3 {[%clk 0:01:32]}  Nxa3 {[%clk 0:01:05]} 24. bxa3 {[%clk 0:01:28]}  Bxa3 {[%clk 0:01:06]} 25. Rxc8 {[%clk 0:01:27]}  Rxc8 {[%clk 0:01:05]} 26. Nc5 {[%clk 0:01:26]}  Bxc5 {[%clk 0:00:28]} 27. dxc5 {[%clk 0:01:27]}  Qb4 {[%clk 0:00:27]} 28. Rb1 {[%clk 0:01:16]}  a3 {[%clk 0:00:23]} 29. Bd4 {[%clk 0:01:15]}  b2 {[%clk 0:00:19]} 30. Bxb2 {[%clk 0:00:48]}  axb2 {[%clk 0:00:17]} 31. Rxb2 {[%clk 0:00:48]}  Qxc5 {[%clk 0:00:17]} 32. Kh2 {[%clk 0:00:44]}  Qc1 {[%clk 0:00:16]} 33. Rd2 {[%clk 0:00:43]}  Qc4 {[%clk 0:00:14]} 34. Nd4 {[%clk 0:00:39]}  Qxe2 {[%clk 0:00:12]} 35. Rxe2 {[%clk 0:00:40]}  Rc4 {[%clk 0:00:11]} 36. Rd2 {[%clk 0:00:40]}  Kh7 {[%clk 0:00:10]} 37. f4 {[%clk 0:00:40]}  g6 {[%clk 0:00:08]} 38. Kg3 {[%clk 0:00:38]}  gxh5 {[%clk 0:00:08]} 39. Kf3 {[%clk 0:00:36]}  Kg6 {[%clk 0:00:08]} 40. Ke3 {[%clk 0:00:36]}  Rc3+ {[%clk 0:00:08]} 41. Kf2 {[%clk 0:00:31]}  Rc4 {[%clk 0:00:07]} 42. g3 {[%clk 0:00:27]}  Rc3 {[%clk 0:00:06]} 43. Ne2 {[%clk 0:00:23]}  Rc4 {[%clk 0:00:06]} 44. Rd4 {[%clk 0:00:23]}  Rxd4 {[%clk 0:00:06]} 45. Nxd4 {[%clk 0:00:24]}  h4 {[%clk 0:00:06]} 46. gxh4 {[%clk 0:00:24]}  Kh5 {[%clk 0:00:06]} 47. Kg3 {[%clk 0:00:24]}  Kg6 {[%clk 0:00:07]} 48. Ne2 {[%clk 0:00:21]}  Bd7 {[%clk 0:00:07]} 49. Nd4 {[%clk 0:00:21]}  Be6 {[%clk 0:00:07]} 50. Kh3 {[%clk 0:00:21]}  Bd7 {[%clk 0:00:07]} 51. Kg3 {[%clk 0:00:21]}  Be6 {[%clk 0:00:07]} 1/2-1/2


[Site "https://www.chess.com"]

[Event "Titled Tuesday Blitz October 25 Late 2022"]
[White "Tristan, Leonardo"]
[Black "Ismayil, Malak"]
[WhiteFideId "113816"]
[BlackFideId "13412604"]
[WhiteElo "2446"]
[BlackElo "1879"]
[Result "0-1"]
[Round "01"]
[TimeControl "180+1"]
[Date "2022.10.26"]
[WhiteClock "0:00:47"]
[BlackClock "0:00:15"]

1. d4 {[%clk 0:03:00]}  Nf6 {[%clk 0:02:59]} 2. Nf3 {[%clk 0:02:55]}  g6 {[%clk 0:03:00]} 3. Bf4 {[%clk 0:02:55]}  Bg7 {[%clk 0:03:00]} 4. e3 {[%clk 0:02:55]}  O-O {[%clk 0:03:00]} 5. Be2 {[%clk 0:02:55]}  d6 {[%clk 0:03:01]} 6. O-O {[%clk 0:02:56]}  Nc6 {[%clk 0:03:01]} 7. c3 {[%clk 0:02:53]}  Re8 {[%clk 0:03:01]} 8. h3 {[%clk 0:02:46]}  Bf5 {[%clk 0:02:57]} 9. Qb3 {[%clk 0:02:25]}  e5 {[%clk 0:02:39]} 10. Bh2 {[%clk 0:02:21]}  Qc8 {[%clk 0:02:34]} 11. Ng5 {[%clk 0:02:04]}  Re7 {[%clk 0:02:02]} 12. Bc4 {[%clk 0:01:54]}  Qe8 {[%clk 0:01:11]} 13. Nxf7 {[%clk 0:01:44]}  Rxf7 {[%clk 0:01:09]} 14. Bxf7+ {[%clk 0:01:44]}  Qxf7 {[%clk 0:01:10]} 15. Qxb7 {[%clk 0:01:44]}  Qe8 {[%clk 0:01:01]} 16. Qb3+ {[%clk 0:01:38]}  Be6 {[%clk 0:00:57]} 17. Qc2 {[%clk 0:01:38]}  Rb8 {[%clk 0:00:50]} 18. Nd2 {[%clk 0:01:37]}  Bf5 {[%clk 0:00:49]} 19. e4 {[%clk 0:01:35]}  Bd7 {[%clk 0:00:47]} 20. d5 {[%clk 0:01:35]}  Ne7 {[%clk 0:00:45]} 21. c4 {[%clk 0:01:35]}  c5 {[%clk 0:00:42]} 22. a3 {[%clk 0:01:34]}  Nh5 {[%clk 0:00:41]} 23. b4 {[%clk 0:01:34]}  cxb4 {[%clk 0:00:40]} 24. axb4 {[%clk 0:01:34]}  Rxb4 {[%clk 0:00:39]} 25. Rxa7 {[%clk 0:01:35]}  Bh6 {[%clk 0:00:38]} 26. c5 {[%clk 0:01:31]}  Nc8 {[%clk 0:00:36]} 27. Rc7 {[%clk 0:01:27]}  dxc5 {[%clk 0:00:34]} 28. Nc4 {[%clk 0:01:24]}  Bf4 {[%clk 0:00:32]} 29. Bxf4 {[%clk 0:01:15]}  Nxf4 {[%clk 0:00:33]} 30. Nxe5 {[%clk 0:01:12]}  Bxh3 {[%clk 0:00:20]} 31. Qxc5 {[%clk 0:01:05]}  Qxe5 {[%clk 0:00:17]} 32. Qxb4 {[%clk 0:00:51]}  Qg5 {[%clk 0:00:16]} 33. g3 {[%clk 0:00:49]}  Ne2+ {[%clk 0:00:15]} 34. Kh2 {[%clk 0:00:47]}  Qh5 {[%clk 0:00:15]} 0-1


[Site "https://www.chess.com"]

[Event "Titled Tuesday Blitz October 25 Late 2022"]
[White "Yi, Richard"]
[Black "Luxama, Jacques Muller"]
[WhiteFideId "2079518"]
[BlackFideId "11900113"]
[WhiteElo "2147"]
[BlackElo "1931"]
[Result "1-0"]
[Round "01"]
[TimeControl "180+1"]
[Date "2022.10.26"]
[WhiteClock "0:00:40"]
[BlackClock "0:00:55"]

1. e4 {[%clk 0:02:59]}  c5 {[%clk 0:02:57]} 2. Nf3 {[%clk 0:02:58]}  d6 {[%clk 0:02:57]} 3. Bb5+ {[%clk 0:02:57]}  Bd7 {[%clk 0:02:56]} 4. c4 {[%clk 0:02:56]}  a6 {[%clk 0:02:55]} 5. Ba4 {[%clk 0:02:56]}  Nc6 {[%clk 0:02:45]} 6. O-O {[%clk 0:02:54]}  Nf6 {[%clk 0:02:44]} 7. Nc3 {[%clk 0:02:52]}  e6 {[%clk 0:02:42]} 8. d4 {[%clk 0:02:44]}  cxd4 {[%clk 0:02:41]} 9. Nxd4 {[%clk 0:02:44]}  Be7 {[%clk 0:02:40]} 10. Be3 {[%clk 0:02:41]}  O-O {[%clk 0:02:39]} 11. h3 {[%clk 0:02:25]}  Ne5 {[%clk 0:02:38]} 12. Bxd7 {[%clk 0:02:19]}  Qxd7 {[%clk 0:02:37]} 13. b3 {[%clk 0:02:19]}  Rac8 {[%clk 0:02:36]} 14. Rc1 {[%clk 0:02:18]}  d5 {[%clk 0:02:24]} 15. exd5 {[%clk 0:02:03]}  exd5 {[%clk 0:02:23]} 16. cxd5 {[%clk 0:01:56]}  Nxd5 {[%clk 0:02:22]} 17. Nxd5 {[%clk 0:01:55]}  Qxd5 {[%clk 0:02:21]} 18. Nf5 {[%clk 0:01:51]}  Qe6 {[%clk 0:02:17]} 19. Rxc8 {[%clk 0:01:27]}  Rxc8 {[%clk 0:02:16]} 20. Nxe7+ {[%clk 0:01:27]}  Qxe7 {[%clk 0:02:15]} 21. Bf4 {[%clk 0:01:26]}  Ng6 {[%clk 0:02:14]} 22. Be3 {[%clk 0:01:22]}  h6 {[%clk 0:02:04]} 23. Qd5 {[%clk 0:01:21]}  Rc6 {[%clk 0:01:56]} 24. Rd1 {[%clk 0:01:20]}  Qe6 {[%clk 0:01:33]} 25. Qxe6 {[%clk 0:01:17]}  Rxe6 {[%clk 0:01:32]} 26. Rd7 {[%clk 0:01:17]}  b5 {[%clk 0:01:32]} 27. Ra7 {[%clk 0:01:16]}  Ne5 {[%clk 0:01:30]} 28. g4 {[%clk 0:01:13]}  h5 {[%clk 0:01:17]} 29. gxh5 {[%clk 0:01:10]}  Nf3+ {[%clk 0:01:08]} 30. Kg2 {[%clk 0:01:10]}  Ne1+ {[%clk 0:01:07]} 31. Kg3 {[%clk 0:01:08]}  Nc2 {[%clk 0:01:08]} 32. Bf4 {[%clk 0:00:56]}  Nb4 {[%clk 0:01:05]} 33. a4 {[%clk 0:00:49]}  bxa4 {[%clk 0:01:04]} 34. bxa4 {[%clk 0:00:50]}  f6 {[%clk 0:00:59]} 35. Rd7 {[%clk 0:00:47]}  Kh7 {[%clk 0:00:58]} 36. Rd6 {[%clk 0:00:43]}  Rxd6 {[%clk 0:00:57]} 37. Bxd6 {[%clk 0:00:44]}  Kh6 {[%clk 0:00:57]} 38. Bxb4 {[%clk 0:00:43]}  Kxh5 {[%clk 0:00:56]} 39. f4 {[%clk 0:00:41]}  g5 {[%clk 0:00:55]} 40. f5 {[%clk 0:00:40]} 1-0


[Site "https://www.chess.com"]

[Event "Titled Tuesday Blitz October 25 Late 2022"]
[White "Zochowski, Kacper"]
[Black "Naroditsky, Daniel"]
[WhiteFideId "1125494"]
[BlackFideId "2026961"]
[WhiteElo "2523"]
[BlackElo "3163"]
[Result "0-1"]
[Round "01"]
[TimeControl "180+1"]
[Date "2022.10.26"]
[WhiteClock "0:00:04"]
[BlackClock "0:00:31"]

1. Nf3 {[%clk 0:02:03]}  Nf6 {[%clk 0:02:58]} 2. c4 {[%clk 0:01:59]}  g6 {[%clk 0:02:55]} 3. b3 {[%clk 0:01:59]}  Bg7 {[%clk 0:02:55]} 4. Bb2 {[%clk 0:01:58]}  O-O {[%clk 0:02:55]} 5. g3 {[%clk 0:01:59]}  d6 {[%clk 0:02:53]} 6. d4 {[%clk 0:01:58]}  Nbd7 {[%clk 0:02:35]} 7. Bg2 {[%clk 0:01:57]}  e5 {[%clk 0:02:32]} 8. O-O {[%clk 0:01:56]}  e4 {[%clk 0:02:20]} 9. Ne1 {[%clk 0:00:42]}  Re8 {[%clk 0:02:16]} 10. Nc3 {[%clk 0:00:34]}  Nf8 {[%clk 0:02:15]} 11. Nc2 {[%clk 0:00:28]}  h5 {[%clk 0:02:15]} 12. Ne3 {[%clk 0:00:28]}  h4 {[%clk 0:02:03]} 13. Qc2 {[%clk 0:00:27]}  Ne6 {[%clk 0:01:42]} 14. Rad1 {[%clk 0:00:18]}  Ng5 {[%clk 0:01:40]} 15. Ncd5 {[%clk 0:00:19]}  Nxd5 {[%clk 0:01:36]} 16. Nxd5 {[%clk 0:00:20]}  c6 {[%clk 0:01:30]} 17. Nf4 {[%clk 0:00:16]}  Bf5 {[%clk 0:01:25]} 18. Qd2 {[%clk 0:00:15]}  e3 {[%clk 0:01:18]} 19. fxe3 {[%clk 0:00:15]}  hxg3 {[%clk 0:01:19]} 20. hxg3 {[%clk 0:00:15]}  Ne4 {[%clk 0:01:20]} 21. Bxe4 {[%clk 0:00:15]}  Bxe4 {[%clk 0:01:19]} 22. d5 {[%clk 0:00:15]}  Qg5 {[%clk 0:01:12]} 23. Kf2 {[%clk 0:00:14]}  c5 {[%clk 0:01:07]} 24. Bxg7 {[%clk 0:00:14]}  Kxg7 {[%clk 0:01:08]} 25. Qc3+ {[%clk 0:00:13]}  Re5 {[%clk 0:01:06]} 26. Rg1 {[%clk 0:00:14]}  Rh8 {[%clk 0:01:05]} 27. Rdf1 {[%clk 0:00:14]}  Qg4 {[%clk 0:00:52]} 28. Ke1 {[%clk 0:00:14]}  Re8 {[%clk 0:00:46]} 29. Kd2 {[%clk 0:00:15]}  Kg8 {[%clk 0:00:45]} 30. Rf2 {[%clk 0:00:14]}  Bf5 {[%clk 0:00:42]} 31. Rf3 {[%clk 0:00:14]}  Qg5 {[%clk 0:00:41]} 32. Rgf1 {[%clk 0:00:09]}  Bg4 {[%clk 0:00:41]} 33. Nd3 {[%clk 0:00:10]}  Rxe3 {[%clk 0:00:33]} 34. Rxf7 {[%clk 0:00:03]}  Rxe2+ {[%clk 0:00:32]} 35. Kd1 {[%clk 0:00:04]}  Rf2+ {[%clk 0:00:31]} 0-1


[Site "https://www.chess.com"]

[Event "Titled Tuesday Blitz October 25 Late 2022"]
[White "chess50years"]
[Black "Toncheva, Nadya"]
[BlackFideId "2924056"]
[WhiteElo "1200"]
[BlackElo "2101"]
[Result "0-1"]
[Round "01"]
[TimeControl "180+1"]
[Date "2022.10.26"]
[WhiteClock "0:00:40"]
[BlackClock "0:00:17"]

1. d4 {[%clk 0:02:58]}  d5 {[%clk 0:02:59]} 2. c4 {[%clk 0:02:58]}  dxc4 {[%clk 0:03:00]} 3. e4 {[%clk 0:02:57]}  e5 {[%clk 0:02:59]} 4. Nf3 {[%clk 0:02:56]}  Bb4+ {[%clk 0:02:59]} 5. Nc3 {[%clk 0:02:54]}  exd4 {[%clk 0:02:58]} 6. Qxd4 {[%clk 0:02:54]}  Qxd4 {[%clk 0:02:57]} 7. Nxd4 {[%clk 0:02:53]}  Nf6 {[%clk 0:02:57]} 8. f3 {[%clk 0:02:52]}  O-O {[%clk 0:02:50]} 9. Bxc4 {[%clk 0:02:51]}  a6 {[%clk 0:02:50]} 10. Be3 {[%clk 0:02:50]}  b5 {[%clk 0:02:48]} 11. Bb3 {[%clk 0:02:48]}  Bb7 {[%clk 0:02:47]} 12. O-O {[%clk 0:02:47]}  Nbd7 {[%clk 0:02:39]} 13. Rfd1 {[%clk 0:02:46]}  Rfd8 {[%clk 0:02:35]} 14. Rac1 {[%clk 0:02:41]}  Rac8 {[%clk 0:02:31]} 15. Nf5 {[%clk 0:02:35]}  Bf8 {[%clk 0:02:15]} 16. Nd5 {[%clk 0:02:31]}  Nxd5 {[%clk 0:02:14]} 17. Bxd5 {[%clk 0:02:30]}  c6 {[%clk 0:02:06]} 18. Bb3 {[%clk 0:02:26]}  c5 {[%clk 0:01:59]} 19. Bd5 {[%clk 0:02:24]}  Bxd5 {[%clk 0:01:50]} 20. Rxd5 {[%clk 0:02:24]}  c4 {[%clk 0:01:42]} 21. Rcd1 {[%clk 0:02:19]}  g6 {[%clk 0:01:38]} 22. Ng3 {[%clk 0:02:15]}  Rc7 {[%clk 0:01:25]} 23. Bb6 {[%clk 0:02:09]}  Nxb6 {[%clk 0:01:19]} 24. Rxd8 {[%clk 0:02:08]}  Kg7 {[%clk 0:01:19]} 25. e5 {[%clk 0:01:57]}  b4 {[%clk 0:01:08]} 26. Ne4 {[%clk 0:01:53]}  Na4 {[%clk 0:00:58]} 27. R8d7 {[%clk 0:01:45]}  Rxd7 {[%clk 0:00:53]} 28. Rxd7 {[%clk 0:01:45]}  Nxb2 {[%clk 0:00:53]} 29. Nd6 {[%clk 0:01:37]}  Kg8 {[%clk 0:00:42]} 30. Nxf7 {[%clk 0:01:32]}  c3 {[%clk 0:00:40]} 31. Rc7 {[%clk 0:01:31]}  Nd3 {[%clk 0:00:32]} 32. e6 {[%clk 0:01:25]}  Bc5+ {[%clk 0:00:21]} 33. Kf1 {[%clk 0:01:16]}  c2 {[%clk 0:00:20]} 34. Nh6+ {[%clk 0:01:16]}  Kf8 {[%clk 0:00:19]} 35. e7+ {[%clk 0:00:59]}  Ke8 {[%clk 0:00:19]} 36. Rc8+ {[%clk 0:00:40]}  Kxe7 {[%clk 0:00:19]} 37. Ng8+ {[%clk 0:00:40]}  Kd7 {[%clk 0:00:17]} 0-1


[Site "https://www.chess.com"]